bitfinex/quotes_ETHUSD_20240603
["timestamp","ask_amount","ask_price","bid_price","bid_amount"]
[1717391798817,0.2295,3829.0,3828.9,8.46063181]
[1717391799573,0.2295,3829.0,3828.9,9.01063181]
[1717391799723,0.2295,3829.0,3828.9,11.76563181]
[1717391799919,0.2295,3829.0,3828.9,12.18066825]
[1717391800117,0.2295,3829.0,3828.9,11.76563181]
[1717391801248,0.2295,3829.0,3828.9,9.01063181]
[1717391802455,0.2295,3829.0,3828.9,11.76563181]
[1717391804026,0.2295,3829.0,3828.9,14.75053181]
[1717391804227,0.1281522,3830.0,3828.9,14.75053181]
[1717391804228,0.1281522,3830.0,3829.2,2.61149]
[1717391804455,0.1281522,3830.0,3829.4,3.92133]
[1717391804656,0.1281522,3830.0,3829.5,8.7726]
[1717391804962,0.1281522,3830.0,3829.5,9.00068097]
[1717391805161,0.1281522,3830.0,3829.6,2.6112]
[1717391805367,0.1281522,3830.0,3829.8,3.9211]
[1717391805568,0.1281522,3830.0,3829.9,5.7721]
[1717391805868,0.1281522,3830.0,3829.9,9.00008922]
[1717391807724,0.1281522,3830.0,3829.9,8.45008922]
[1717391808481,0.1281522,3830.0,3829.9,5.45008922]
[1717391810887,3.4102522,3830.0,3829.9,5.45008922]
[1717391811235,3.4102522,3830.0,3829.9,6.00008922]
[1717391812152,3.4102522,3830.0,3829.9,5.45008922]
[1717391812357,4.01236242,3830.0,3829.9,5.45008922]
[1717391812582,3.4102522,3830.0,3829.9,5.45008922]
[1717391813650,3.4102522,3830.0,3829.9,6.00008922]
[1717391814060,0.1281522,3830.0,3829.9,6.00008922]
[1717391815288,0.1281522,3830.0,3829.9,5.45008922]
[1717391815453,0.1281522,3830.0,3829.9,6.00008922]
[1717391816901,0.1281522,3830.0,3829.9,5.45008922]
[1717391817083,3.4252522,3830.0,3829.9,5.45008922]
[1717391818291,4.02886242,3830.0,3829.9,1.95518922]
[1717391820681,4.02886242,3830.0,3828.9,7.28]
[1717391820890,6.05164,3829.0,3828.9,7.28]
[1717391821205,2.61195,3828.6,3828.2,7.28]
[1717391821433,2.61195,3828.6,3828.3,5.2241]
[1717391821714,3.44,3829.0,3828.3,5.2241]
[1717391822659,3.44,3829.0,3828.4,0.55]
[1717391822864,3.44,3829.0,3828.5,5.224]
[1717391823163,3.44,3829.0,3828.6,0.55]
[1717391823360,3.44,3829.0,3828.7,5.2237]
[1717391823596,3.44,3829.0,3828.8,0.55]
[1717391823905,3.44,3829.0,3828.9,5.2234]
[1717391824103,3.44,3829.0,3828.9,5.7734]
[1717391824266,2.61161,3829.1,3828.9,5.7734]
[1717391824466,2.61161,3829.1,3829.0,0.55]
[1717391825024,7.39531,3829.1,3828.9,5.2234]
[1717391825368,1.31,3829.0,3828.9,5.2234]
[1717391825564,3.2595,3829.0,3828.9,5.2234]
[1717391826688,3.2095,3829.0,3828.9,1.7285]
[1717391827000,3.927611,3829.0,3828.2,7.28]
[1717391827203,1.31,3828.4,3828.2,7.28]
[1717391827565,1.31,3828.8,3828.2,7.28]
[1717391828375,2.61212,3828.3,3828.2,7.28]
[1717391828998,2.61212,3828.3,3828.2,7.83]
[1717391830068,2.61212,3828.3,3828.2,0.55]
[1717391830566,2.61212,3828.3,3827.6,3.0]
[1717391830971,2.61212,3828.3,3827.7,0.55]
[1717391831498,2.61245,3827.9,3827.5,7.28]
[1717391831817,5.81375,3827.9,3827.5,7.28]
[1717391833272,2.61245,3827.9,3827.5,7.28]
[1717391833807,2.61245,3827.9,3827.6,0.55]
[1717391835113,2.61245,3827.9,3827.5,7.28]
[1717391835315,2.61253,3827.7,3827.5,7.28]
[1717391835816,3.2013,3827.6,3827.5,7.28]
[1717391836022,2.61296,3827.1,3826.5,7.28]
[1717391836220,2.61322,3826.7,3826.1,7.28]
[1717391837881,2.6135,3826.3,3825.3,1.045528]
[1717391838080,2.6135,3826.3,3825.1,3.4239]
[1717391838482,2.6135,3826.3,3824.8,2.6145]
[1717391838915,1.31,3826.6,3824.8,2.6145]
[1717391838916,2.61377,3825.9,3824.8,2.6145]
[1717391839080,2.61377,3825.9,3824.9,35.0]
[1717391839418,2.61377,3825.9,3824.9,40.2283]
[1717391840086,2.6142,3825.3,3824.9,5.2283]
[1717391840290,3.9242,3825.3,3825.0,0.18770487]
[1717391840987,2.61385,3825.8,3825.0,0.18770487]
[1717391842018,2.61417,3825.3,3825.0,0.18770487]
[1717391842342,2.61417,3825.3,3824.9,5.2283]
[1717391842546,3.92431,3825.1,3824.9,5.2283]
[1717391844305,2.61431,3825.1,3824.9,5.2283]
[1717391848404,2.61431,3825.1,3825.0,35.0]
[1717391848603,2.61431,3825.1,3825.0,34.18183011]
[1717391849144,2.61431,3825.1,3825.0,0.18183011]
[1717391849648,2.61431,3825.1,3824.9,5.2283]
[1717391849804,2.61431,3825.1,3824.9,40.2283]
[1717391850207,2.61431,3825.1,3825.0,0.18183011]
[1717391850641,2.61398,3825.6,3825.0,0.18183011]
[1717391850943,2.61367,3826.1,3825.1,35.55]
[1717391851310,2.61367,3826.1,3825.2,0.18222438]
[1717391851649,2.61367,3826.1,3825.3,0.55]
[1717391851849,2.61367,3826.1,3825.3,0.73220139]
[1717391853469,2.61333,3826.6,3825.3,0.73220139]
[1717391853608,2.61333,3826.6,3825.4,2.61404]
[1717391853807,2.61333,3826.6,3825.7,3.4517]
[1717391854235,2.61333,3826.6,3825.8,0.73164617]
[1717391854552,3.5306,3827.5,3825.8,3.73164617]
[1717391854553,2.61296,3827.1,3825.8,3.73164617]
[1717391854846,2.61296,3827.1,3825.9,2.61374]
[1717391855032,2.61296,3827.1,3826.0,3.55]
[1717391855239,2.61296,3827.1,3826.0,3.73160021]
[1717391855408,2.61296,3827.1,3826.1,2.61361]
[1717391855753,2.61296,3827.1,3826.2,3.73155425]
[1717391856834,2.61327,3826.7,3826.2,0.18155425]
[1717391857021,2.61327,3826.7,3825.8,3.0]
[1717391857227,2.61327,3826.7,3826.3,0.18128611]
[1717391857555,2.61327,3826.7,3825.8,3.0]
[1717391857854,2.61327,3826.7,3826.4,0.18126313]
[1717391858064,2.61327,3826.7,3825.8,3.0]
[1717391858359,2.61327,3826.7,3826.5,0.18137844]
[1717391858563,2.61327,3826.7,3825.9,0.55]
[1717391858726,2.61327,3826.7,3826.6,0.1813649]
[1717391858930,2.61327,3826.7,3825.9,0.55]
[1717391859192,2.61327,3826.7,3826.6,0.1813649]
[1717391859325,2.61327,3826.7,3825.9,0.55]
[1717391859525,2.61327,3826.7,3826.6,0.1813649]
[1717391859830,2.61327,3826.7,3826.6,0.18141519]
[1717391860029,2.61327,3826.7,3825.9,0.55]
[1717391860489,2.61327,3826.7,3826.6,0.18141519]
[1717391860635,2.61327,3826.7,3825.8,2.55]
[1717391861123,2.61291,3827.2,3825.9,0.18157604]
[1717391862428,2.61291,3827.2,3826.0,0.55]
[1717391862632,2.61291,3827.2,3826.0,3.55]
[1717391862854,2.61291,3827.2,3826.1,35.18153008]
[1717391863063,2.61291,3827.2,3826.2,0.55]
[1717391863456,2.61291,3827.2,3826.0,2.73148412]
[1717391863657,2.61317,3826.8,3826.3,0.17543465]
[1717391863927,2.61317,3826.8,3826.1,0.1754806]
[1717391864169,2.61317,3826.8,3826.0,2.73148412]
[1717391864170,2.61317,3826.8,3826.4,0.17541167]
[1717391864354,2.61317,3826.8,3826.0,2.73148412]
[1717391864556,2.61317,3826.8,3826.5,0.1753887]
[1717391864729,2.61317,3826.8,3826.0,2.73148412]
[1717391864930,2.61317,3826.8,3826.6,0.17472742]
[1717391865179,2.61317,3826.8,3826.0,2.73148412]
[1717391865378,2.61317,3826.8,3826.0,1.90618857]
[1717391865553,2.61317,3826.8,3826.1,0.16901882]
[1717391867773,2.61317,3826.8,3825.9,3.0]
[1717391867940,2.61317,3826.8,3826.2,0.16892669]
[1717391868145,2.61317,3826.8,3825.8,3.0]
[1717391868774,2.61317,3826.8,3825.9,0.16899563]
[1717391869557,2.61342,3826.4,3825.9,0.16899563]
[1717391869890,2.61342,3826.4,3825.3,6.7517]
[1717391870096,2.61342,3826.4,3826.0,0.16897265]
[1717391870403,2.61342,3826.4,3825.3,6.7517]
[1717391870814,2.61342,3826.4,3825.1,12.2]
[1717391870815,2.61369,3826.0,3825.8,0.16905319]
[1717391871247,2.61369,3826.0,3825.9,0.1691308]
[1717391871680,2.61369,3826.0,3825.2,7.28]
[1717391871993,2.61369,3826.0,3825.3,5.2283]
[1717391872142,2.61369,3826.0,3825.3,5.39756871]
[1717391872341,2.61401,3825.6,3825.3,5.39756871]
[1717391874152,2.61401,3825.6,3825.3,5.2283]
[1717391874587,2.61401,3825.6,3825.4,0.16434366]
[1717391877044,3.503,3825.5,3825.4,0.16434366]
[1717391881099,5.2282,3825.4,3825.3,3.66e-06]
[1717391881297,5.970791,3825.4,3825.3,3.66e-06]
[1717391881503,8.970791,3825.4,3825.3,3.66e-06]
[1717391881738,13.097891,3825.4,3825.3,3.66e-06]
[1717391882003,2.61504,3824.1,3823.0,4.568666]
[1717391882220,2.61504,3824.1,3823.1,2.61566]
[1717391883391,2.61504,3824.1,3823.2,0.55]
[1717391883954,2.61504,3824.1,3823.0,4.568666]
[1717391883955,3.5945,3824.5,3823.0,4.568666]
[1717391884153,2.61527,3823.7,3823.0,4.568666]
[1717391885271,2.61527,3823.7,3823.0,3.5225]
[1717391886395,2.61498,3824.2,3823.0,3.5225]
[1717391888931,2.61498,3824.2,3823.1,0.15521417]
[1717391889886,2.61462,3824.7,3823.3,2.61548]
[1717391890218,2.61462,3824.7,3823.4,0.55]
[1717391890416,2.61462,3824.7,3823.4,0.70514512]
[1717391892176,4.9077,3824.9,3823.4,0.15514512]
[1717391892372,2.61488,3824.3,3823.4,0.15514512]
[1717391892610,2.61524,3823.8,3823.4,0.15514512]
[1717391892982,2.61524,3823.8,3822.8,9.89583]
[1717391893409,2.61524,3823.8,3822.9,0.1552602]
[1717391894523,2.61546,3823.5,3822.9,0.1552602]
[1717391897615,2.61546,3823.5,3822.6,3.5241]
[1717391897815,2.61546,3823.5,3822.7,0.15549424]
[1717391902025,2.61546,3823.5,3822.8,0.15028808]
[1717391902229,2.61546,3823.5,3822.6,2.67959424]
[1717391902432,2.61546,3823.5,3822.7,0.15033304]
[1717391902727,2.61513,3823.9,3822.7,0.15033304]
[1717391902941,2.61513,3823.9,3822.7,2.76622304]
[1717391903232,3.7406,3824.4,3822.8,0.05230304]
[1717391903414,2.61487,3824.3,3823.0,2.61573]
[1717391903730,2.61487,3824.3,3823.3,2.61554]
[1717391904143,2.61487,3824.3,3823.4,0.14526709]
[1717391905741,6.66551,3824.0,3823.4,0.14526709]
[1717391906059,2.61522,3823.8,3822.9,2.61579]
[1717391906333,2.61522,3823.8,3823.5,0.14524407]
[1717391906502,2.61522,3823.8,3822.6,3.12874407]
[1717391906911,2.61522,3823.8,3822.7,0.1404307]
[1717391911654,4.0504,3824.0,3822.7,0.1404307]
[1717391911655,3.9128,3823.7,3822.7,0.1404307]
[1717391912015,2.6154,3823.6,3822.5,7.28]
[1717391912209,2.6154,3823.6,3822.6,0.14045372]
[1717391912900,2.6154,3823.6,3822.7,3.8376]
[1717391913720,2.6154,3823.6,3822.8,0.14040768]
[1717391914715,2.61507,3824.0,3822.8,0.14040768]
[1717391915549,2.61507,3824.0,3823.0,2.61571]
[1717391915856,2.61507,3824.0,3823.1,0.1405571]
[1717391917849,2.61507,3824.0,3823.2,0.13584885]
[1717391918003,2.61507,3824.0,3822.7,3.8376]
[1717391918205,2.61507,3824.0,3822.8,0.68594091]
[1717391918406,2.61507,3824.0,3823.0,2.61571]
[1717391918631,2.61507,3824.0,3823.1,0.13587186]
[1717391922758,2.61534,3823.6,3823.1,0.13587186]
[1717391923080,2.61534,3823.6,3822.7,3.8376]
[1717391923355,2.61534,3823.6,3823.2,0.13578019]
[1717391923658,2.61534,3823.6,3823.3,0.13575718]
[1717391923874,2.61534,3823.6,3822.6,2.61601]
[1717391924347,2.61534,3823.6,3822.7,0.13589527]
[1717391924900,2.61572,3823.1,3822.7,0.13589527]
[1717391925350,2.61572,3823.1,3822.3,0.28258531]
[1717391925670,2.61572,3823.1,3822.2,2.61628]
[1717391925820,2.61572,3823.1,3822.6,0.13603689]
[1717391926023,2.61572,3823.1,3822.2,2.61628]
[1717391926269,2.61572,3823.1,3822.3,0.13610596]
[1717391927972,3.9278,3823.5,3822.4,4.1387]
[1717391928331,3.9278,3823.5,3822.5,0.13610361]
[1717391929173,2.61554,3823.3,3822.5,0.13610361]
[1717391929531,2.61554,3823.3,3822.2,2.61628]
[1717391929773,3.9278,3823.5,3822.6,0.13608059]
[1717391929971,3.9278,3823.5,3822.5,2.61602]
[1717391930167,3.9278,3823.5,3822.7,0.13605757]
[1717391930370,3.9278,3823.5,3822.6,4.27478059]
[1717391930557,3.9278,3823.5,3822.8,0.13603455]
[1717391930761,3.9278,3823.5,3822.7,0.13605757]
[1717391931062,3.9278,3823.5,3822.8,0.13603455]
[1717391931263,3.9278,3823.5,3822.6,4.1387]
[1717391931427,3.9278,3823.5,3822.7,0.13605757]
[1717391931829,2.61525,3823.8,3822.7,0.13605757]
[1717391932037,2.61525,3823.8,3822.8,2.61586]
[1717391932239,2.61525,3823.8,3822.9,0.13601153]
[1717391933541,3.8181,3823.9,3823.0,2.61573]
[1717391934080,3.8181,3823.9,3823.1,0.1359655]
[1717391934473,2.61492,3824.2,3823.1,0.1359655]
[1717391935595,3.260662,3824.2,3823.1,0.1359655]
[1717391940894,2.61519,3823.9,3823.1,0.1359655]
[1717391944054,2.61519,3823.9,3823.2,3.804]
[1717391944283,2.61519,3823.9,3823.3,0.13577277]
[1717391945096,6.45737,3824.3,3823.3,0.13577277]
[1717391946182,2.61487,3824.3,3823.3,0.13577277]
[1717391947093,3.259517,3824.3,3823.2,2.93977277]
[1717391947397,3.259517,3824.3,3823.3,0.13122831]
[1717391948103,2.6151,3824.0,3823.3,0.13122831]
[1717391948791,2.6151,3824.0,3823.0,3.11673]
[1717391948987,2.6151,3824.0,3823.4,0.1312053]
[1717391949306,2.6151,3824.0,3823.0,3.11673]
[1717391949526,2.6151,3824.0,3823.1,3.0]
[1717391949666,4.0517,3823.9,3823.1,3.13127434]
[1717391949866,2.6151,3824.0,3823.1,3.13127434]
[1717391952910,2.6151,3824.0,3823.1,2.13127434]
[1717391953213,2.6151,3824.0,3823.1,0.13127434]
[1717391954610,2.6151,3824.0,3823.2,2.6156]
[1717391955112,2.6151,3824.0,3823.3,0.13122831]
[1717391955916,2.61481,3824.4,3823.3,0.13122831]
[1717391959106,2.61507,3824.0,3823.3,0.13122831]
[1717391959682,2.61507,3824.0,3823.1,7.28]
[1717391959882,2.61507,3824.0,3823.2,0.12175982]
[1717391960595,2.61524,3823.8,3823.2,0.12175982]
[1717391961001,2.61544,3823.5,3823.2,0.12175982]
[1717391961310,2.61554,3823.3,3823.2,0.12175982]
[1717391961628,6.41714,3823.3,3823.2,0.12175982]
[1717391961836,6.41714,3823.3,3823.0,0.501]
[1717391965053,4.1123,3823.2,3823.0,0.501]
[1717391965355,8.03697,3823.1,3823.0,0.501]
[1717391965548,12.4283704,3823.1,3823.0,0.501]
[1717391968417,2.61567,3823.1,3823.0,0.501]
[1717391970576,2.61538,3823.6,3823.0,0.501]
[1717391971363,2.61538,3823.6,3823.1,0.11018165]
[1717391972568,2.60820882,3824.1,3823.2,0.05231066]
[1717391972740,2.60820882,3824.1,3823.1,0.11018165]
[1717391972940,2.60820882,3824.1,3823.3,0.10982558]
[1717391973143,2.60820882,3824.1,3823.0,3.11667]
[1717391973336,2.60820882,3824.1,3823.4,0.10980257]
[1717391973554,2.61467,3824.6,3823.0,3.11667]
[1717391973729,3.9509,3825.5,3823.6,2.61532]
[1717391973928,0.52599,3825.4,3823.7,5.98205306]
[1717391974147,1.309,3825.3,3823.7,6.09170911]
[1717391975366,2.61462,3824.7,3823.7,6.09170911]
[1717391978347,8.09852,3824.7,3823.7,6.09170911]
[1717391979147,3.92362,3824.7,3823.7,6.09170911]
[1717391979372,2.61462,3824.7,3823.7,6.09170911]
[1717391982085,2.876082,3824.7,3823.7,6.09170911]
[1717391982278,2.61462,3824.7,3823.7,6.09170911]
[1717391984611,2.61462,3824.7,3823.8,4.0218]
[1717391984767,2.61429,3825.2,3823.9,0.05229322]
[1717391985097,2.61429,3825.2,3823.9,0.16147239]
[1717391985591,2.61429,3825.2,3824.0,0.05229206]
[1717391985755,2.61429,3825.2,3824.0,0.16138626]
[1717391986559,2.61429,3825.2,3824.0,0.1090942]
[1717391986955,2.61429,3825.2,3824.0,2.7241142]
[1717391988248,2.6145,3824.9,3824.0,0.1090942]
[1717391988591,2.6145,3824.9,3823.7,5.98205306]
[1717391988592,2.6145,3824.9,3823.7,10.04875306]
[1717391989187,2.6145,3824.9,3823.8,0.10914021]
[1717391991050,2.61468,3824.6,3823.8,0.10914021]
[1717391991690,2.61491,3824.3,3823.8,0.10914021]
[1717391992197,2.61491,3824.3,3823.9,0.10911721]
[1717391992399,2.61491,3824.3,3823.7,5.98205306]
[1717391992588,2.61491,3824.3,3824.0,0.10892996]
[1717391992771,2.61491,3824.3,3823.7,5.98205306]
[1717391993267,2.61491,3824.3,3823.8,0.10897598]
[1717391993665,2.61491,3824.3,3823.2,9.83055306]
[1717391993891,2.61491,3824.3,3823.9,0.10895297]
[1717391994100,2.61502,3824.1,3823.2,9.83055306]
[1717391994254,2.61502,3824.1,3823.2,5.98205306]
[1717391994653,2.61502,3824.1,3823.3,0.10909103]
[1717391997300,6.54692,3824.1,3823.3,0.10909103]
[1717391998996,2.61502,3824.1,3823.3,0.10909103]
[1717392000568,2.61472,3824.6,3823.4,2.61546]
[1717392000766,2.61472,3824.6,3823.5,3.98]
[1717392000966,2.61472,3824.6,3823.5,4.08925545]
[1717392001163,2.61472,3824.6,3823.5,0.10925545]
[1717392001404,2.61486,3824.3,3823.5,0.10925545]
[1717392003590,2.61486,3824.3,3823.5,0.16155472]
[1717392004403,2.61456,3824.8,3823.6,2.61531]
[1717392004702,2.61456,3824.8,3823.7,4.6005]
[1717392005115,2.61456,3824.8,3823.8,0.10918642]
[1717392008066,2.61476,3824.5,3823.8,0.10918642]
[1717392008420,0.261456,3824.8,3823.8,0.10918642]
[1717392008421,2.61497,3824.2,3823.8,0.10918642]
[1717392008623,5.4285,3824.6,3823.2,5.98205306]
[1717392008923,2.61531,3823.7,3823.2,5.98205306]
[1717392009122,2.61531,3823.7,3822.5,4.1983]
[1717392009123,2.61531,3823.7,3822.6,5.98205306]
[1717392010320,2.61531,3823.7,3822.7,5.2313]
[1717392013407,2.61551,3823.4,3822.7,5.2313]
[1717392014275,2.11451,3823.4,3822.7,5.2313]
[1717392019875,2.61575,3823.0,3822.7,5.2313]
[1717392020287,2.61575,3823.0,3822.8,0.10981019]
[1717392020712,2.61575,3823.0,3822.7,5.2313]
[1717392024455,2.61575,3823.0,3822.8,0.10991559]
[1717392024585,2.61575,3823.0,3822.7,5.2313]
[1717392024786,2.61575,3823.0,3822.9,0.10989257]
[1717392024999,2.61575,3823.0,3822.7,5.2313]
[1717392025438,2.61575,3823.0,3822.8,0.10991559]
[1717392025746,2.61575,3823.0,3822.7,5.2313]
[1717392026922,3.008225,3823.0,3822.7,5.2313]
[1717392027430,2.61588,3822.8,3822.7,5.2313]
[1717392031535,2.6156,3823.3,3822.7,5.2313]
[1717392031843,2.6156,3823.3,3822.8,0.13559763]
[1717392032290,2.6156,3823.3,3822.7,5.2313]
[1717392032692,2.6156,3823.3,3822.8,0.13559763]
[1717392032925,3.00806,3823.3,3822.8,0.13559763]
[1717392033125,3.00806,3823.3,3822.7,5.2313]
[1717392033292,7.11996,3823.3,3822.9,0.13557386]
[1717392033627,2.61581,3822.9,3822.7,5.2313]
[1717392033986,2.61581,3822.9,3822.8,0.13559763]
[1717392034227,2.61581,3822.9,3822.7,5.2313]
[1717392034529,2.61554,3823.3,3822.8,0.13559763]
[1717392034888,2.61554,3823.3,3822.7,5.2313]
[1717392035130,2.61554,3823.3,3822.9,0.13557386]
[1717392035314,2.61554,3823.3,3822.8,0.13559763]
[1717392035519,2.61554,3823.3,3823.0,0.13555008]
[1717392035717,2.61554,3823.3,3822.9,0.13557386]
[1717392035893,2.61554,3823.3,3823.1,0.1355263]
[1717392036094,2.61554,3823.3,3823.0,0.13555008]
[1717392036315,2.61554,3823.3,3823.2,0.13550253]
[1717392036521,2.61554,3823.3,3823.1,0.1355263]
[1717392036716,2.61554,3823.3,3823.2,0.13550253]
[1717392037139,2.61554,3823.3,3822.7,5.2313]
[1717392037308,2.61554,3823.3,3823.2,0.13537849]
[1717392037520,2.61554,3823.3,3822.7,5.2313]
[1717392038017,2.61554,3823.3,3822.8,0.1354736]
[1717392038439,2.61554,3823.3,3822.7,5.2313]
[1717392038612,2.61528,3823.7,3822.9,0.13544982]
[1717392038807,2.61528,3823.7,3822.8,0.1354736]
[1717392039007,2.61528,3823.7,3823.0,0.13542605]
[1717392039226,2.61528,3823.7,3822.9,0.13544982]
[1717392039542,2.61528,3823.7,3823.1,0.13540227]
[1717392039741,2.61528,3823.7,3823.0,0.13542605]
[1717392039946,2.61528,3823.7,3823.2,0.13537849]
[1717392040148,2.61528,3823.7,3823.1,0.13540227]
[1717392040318,2.61528,3823.7,3823.3,0.13535472]
[1717392040535,2.61528,3823.7,3823.2,0.13537849]
[1717392040750,2.61528,3823.7,3822.8,0.05231059]
[1717392040959,2.61528,3823.7,3823.3,0.13535472]
[1717392041252,2.61528,3823.7,3823.4,0.13533095]
[1717392041423,2.61528,3823.7,3822.9,2.61579]
[1717392041606,2.61528,3823.7,3823.5,0.13530718]
[1717392041808,2.61528,3823.7,3822.9,2.61579]
[1717392042007,2.61528,3823.7,3823.6,0.13528341]
[1717392042236,2.61528,3823.7,3822.9,2.61579]
[1717392042458,2.61528,3823.7,3823.6,0.13528341]
[1717392042635,2.61528,3823.7,3822.9,2.61579]
[1717392042852,2.61528,3823.7,3823.6,0.13528341]
[1717392043048,2.61528,3823.7,3822.9,2.61579]
[1717392043218,2.61528,3823.7,3823.6,0.13528341]
[1717392043415,2.61528,3823.7,3822.9,2.61579]
[1717392043614,2.61418,3825.3,3823.6,0.13528341]
[1717392043615,2.61501,3824.1,3823.6,0.13528341]
[1717392043826,2.61501,3824.1,3823.5,3.8154]
[1717392044021,2.61501,3824.1,3823.7,0.13525964]
[1717392044226,2.61501,3824.1,3823.6,0.13528341]
[1717392044473,2.61473,3824.5,3823.8,0.13523587]
[1717392044611,2.61473,3824.5,3823.7,0.13525964]
[1717392044816,2.61473,3824.5,3823.9,0.13521211]
[1717392045040,2.61473,3824.5,3823.8,0.13523587]
[1717392045347,2.61473,3824.5,3823.5,3.8154]
[1717392045810,2.61473,3824.5,3823.6,0.13528341]
[1717392053869,2.61444,3824.9,3823.8,3.8437]
[1717392054232,2.61444,3824.9,3823.9,0.13434423]
[1717392060449,2.61469,3824.6,3823.9,0.13434423]
[1717392063181,2.61489,3824.3,3823.9,0.13434423]
[1717392063776,2.61489,3824.3,3823.6,5.98205306]
[1717392064096,2.61489,3824.3,3824.0,0.13421821]
[1717392064241,2.61489,3824.3,3823.6,5.98205306]
[1717392064441,2.61489,3824.3,3824.1,0.13419445]
[1717392064674,2.61489,3824.3,3823.4,3.8407]
[1717392064835,2.61489,3824.3,3824.2,0.13417069]
[1717392065037,2.6146,3824.7,3824.1,4.1841]
[1717392065269,2.6146,3824.7,3824.2,0.13417069]
[1717392065775,2.6146,3824.7,3824.3,35.0]
[1717392065992,2.6146,3824.7,3824.2,0.13417069]
[1717392066134,2.6146,3824.7,3824.4,0.13412317]
[1717392066340,2.6146,3824.7,3824.3,0.13414693]
[1717392066556,2.6146,3824.7,3824.5,0.13409941]
[1717392066767,2.6146,3824.7,3824.4,0.13412317]
[1717392066966,2.6146,3824.7,3824.6,0.13407565]
[1717392067281,2.87606,3824.7,3824.6,0.13407565]
[1717392067459,2.61484,3824.4,3823.8,9.90625306]
[1717392067661,2.61484,3824.4,3823.5,6.50037]
[1717392067865,2.61484,3824.4,3823.5,3.885]
[1717392068960,3.9877,3824.6,3823.4,18.18205306]
[1717392069218,2.61525,3823.8,3823.4,18.18205306]
[1717392069341,2.61525,3823.8,3823.1,3.885]
[1717392074948,2.61525,3823.8,3822.8,8.98205306]
[1717392075148,2.61525,3823.8,3822.8,13.19635306]
[1717392075869,2.61525,3823.8,3822.8,10.19635306]
[1717392076584,2.61547,3823.5,3822.8,10.19635306]
[1717392076787,2.61547,3823.5,3822.8,5.98205306]
[1717392078662,2.61566,3823.2,3822.8,5.98205306]
[1717392078986,2.61574,3823.0,3822.8,5.98205306]
[1717392079191,2.61574,3823.0,3822.7,5.2313]
[1717392080060,2.61574,3823.0,3822.8,0.13540227]
[1717392080261,2.61574,3823.0,3822.7,5.2313]
[1717392080628,2.61574,3823.0,3822.9,0.13537849]
[1717392080894,2.61574,3823.0,3822.7,5.2313]
[1717392080895,3.257524,3823.0,3822.7,5.2313]
[1717392081103,3.257524,3823.0,3822.9,0.13537849]
[1717392081306,3.257524,3823.0,3822.7,5.2313]
[1717392081605,3.257524,3823.0,3822.9,0.13537849]
[1717392081908,3.257524,3823.0,3822.7,5.2313]
[1717392082271,0.7059624,3822.9,3822.8,0.13558522]
[1717392082474,2.61588,3822.8,3822.7,5.2313]
[1717392085588,6.58098,3822.8,3822.7,5.2313]
[1717392088544,2.61588,3822.8,3822.7,5.2313]
[1717392089019,2.61588,3822.8,3822.7,5.36695553]
[1717392094011,3.16288,3822.8,3822.7,5.36695553]
[1717392094216,3.871998,3822.8,3822.7,5.36695553]
[1717392103611,6.487878,3822.8,3822.7,5.36695553]
[1717392106731,5.940878,3822.8,3822.7,5.36695553]
[1717392107083,6.487878,3822.8,3822.7,5.36695553]
[1717392110430,10.644678,3822.8,3822.7,5.36695553]
[1717392110878,10.644678,3822.8,3822.7,5.2313]
[1717392111076,10.644678,3822.8,3822.7,5.36763483]
[1717392126872,3.871998,3822.8,3822.7,5.36763483]
[1717392127149,3.16288,3822.8,3822.7,5.2313]
[1717392127353,3.16288,3822.8,3822.7,5.36759448]
[1717392138765,2.61588,3822.8,3822.7,5.36759448]
[1717392139267,3.16288,3822.8,3822.7,5.36759448]
[1717392141269,3.479168,3822.8,3822.7,5.36759448]
[1717392142051,2.932168,3822.8,3822.7,5.36759448]
[1717392142263,3.479168,3822.8,3822.7,5.36759448]
[1717392143566,6.095048,3822.8,3822.7,5.36759448]
[1717392143751,6.095048,3822.8,3822.7,5.2313]
[1717392144257,6.095048,3822.8,3822.7,5.36729357]
[1717392148857,9.728048,3822.8,3822.7,5.36729357]
[1717392149017,13.275048,3822.8,3822.7,5.36729357]
[1717392149219,13.825048,3822.8,3822.7,3.57e-06]
[1717392149456,13.825048,3822.8,3822.7,5.7e-07]
[1717392149651,2.61656,3821.8,3821.7,3.872]
[1717392149852,3.16356,3821.8,3821.7,3.872]
[1717392150074,3.16356,3821.8,3821.7,3.99931643]
[1717392150282,3.16356,3821.8,3821.7,3.872]
[1717392150452,3.16356,3821.8,3821.7,3.99931643]
[1717392152062,2.61656,3821.8,3821.7,3.99931643]
[1717392152259,3.16356,3821.8,3821.7,3.99931643]
[1717392152463,3.16356,3821.8,3821.7,3.872]
[1717392152859,3.16356,3821.8,3821.7,3.99526362]
[1717392153214,2.61656,3821.8,3821.7,3.99526362]
[1717392153396,3.16356,3821.8,3821.7,3.99526362]
[1717392153865,3.16356,3821.8,3821.7,3.872]
[1717392154257,3.16356,3821.8,3821.7,3.99526362]
[1717392154501,3.16356,3821.8,3821.7,0.12326362]
[1717392154706,2.61656,3821.8,3821.7,0.12326362]
[1717392155009,3.16356,3821.8,3821.7,0.12326362]
[1717392155158,2.61632,3822.2,3821.7,4.021]
[1717392155362,2.61604,3822.6,3821.8,0.12323983]
[1717392155613,3.16304,3822.6,3821.9,4.0392]
[1717392155818,3.16304,3822.6,3821.9,4.16236658]
[1717392156679,0.547,3822.4,3821.9,4.16236658]
[1717392157081,0.547,3822.4,3821.9,4.0392]
[1717392157390,0.547,3822.4,3822.0,0.12314279]
[1717392157928,0.547,3822.1,3822.0,0.12314279]
[1717392158513,0.547,3822.1,3821.9,4.0392]
[1717392159617,2.61628,3822.3,3821.9,4.0392]
[1717392159926,0.547,3822.0,3821.9,4.0392]